Cogmind - Beta 12 @@@ ROGUE MODE // 2023.10.14 @ 00:07:57 Player: Man Suit Result: Destroyed by D-53 Grenadier with Mini Grenade Launcher Performance ------------- Evolutions (0) 0 Regions Visited (2) 400 Robots Destroyed (9) 45 Value Destroyed (176) 176 Prototype IDs (2) 40 Alien Tech Used (0) 0 Bonus (0) 0 TOTAL SCORE: 661 Bonus ------- None Cogmind --------- Core Integrity 0/250 Matter 212/300 Energy 100/250 System Corruption 2% Temperature Cool (0) Movement Core (200) Ox3 Location -10/Mines Parts ------- > --- POWER (1) -------- Ion Engine > --- PROPULSION (2) --- (None) > --- UTILITY (2) ------ Small Storage Unit > --- WEAPON (2) ------- Flail > --- INVENTORY (8) ---- Improved Aluminum Leg Assault Rifle Peak State ------------ > --- POWER ------------ Ion Engine > --- PROPULSION ------- Improved Aluminum Leg Improved Aluminum Leg > --- UTILITY ---------- Small Storage Unit Tractor Beam > --- WEAPON ----------- Assault Rifle Assault Rifle > --- INVENTORY -------- Ion Engine Aluminum Leg Improved Aluminum Leg Improved Aluminum Leg Assault Rifle Grenade Launcher Flail [Rating: 10] Favorites ----------- Power Ion Engine Engine Ion Engine Propulsion Improved Aluminum Leg Leg Improved Aluminum Leg Utility Small Storage Unit Device Tractor Beam Storage Small Storage Unit Weapon Assault Rifle Ballistic Gun Assault Rifle Launcher Grenade Launcher Impact Weapon Flail Build | -11 -10 -10 ------- Run | Jun Mat Min Slots Evolved . | . . . Power . | . . . Propulsion . | . . . Utility . | . . . Weapon . | . . . Parts Attached 20 | 6 8 6 Power 3 | 1 1 1 Engine 3 | 1 1 1 Core . | . . . Reactor . | . . . Propulsion 7 | 2 3 2 Treads . | . . . Leg 7 | 2 3 2 Wheel . | . . . Hover . | . . . Flight . | . . . Utility 2 | 1 1 . Device 1 | . 1 . Storage 1 | 1 . . Processor . | . . . Hackware . | . . . Protection . | . . . Artifact . | . . . Weapon 8 | 2 3 3 Energy Gun . | . . . Energy Cannon . | . . . Ballistic Gun 6 | 2 3 1 Ballistic Cannon . | . . . Launcher 1 | . . 1 Special Weapon . | . . . Impact Weapon 1 | . . 1 Slashing Weapon . | . . . Piercing Weapon . | . . . Special Melee Weapon . | . . . Unidentified Prototypes . | . . . Parts Lost 9 | . . 9 Power 1 | . . 1 Propulsion 4 | . . 4 Utility 1 | . . 1 Weapon 3 | . . 3 Highest Loss Streak 9 | . . 9 To Critical Strikes . | . . . Average Slot Usage (%) 90 | . 91 88 Engine 13 | . 13 10 Leg 27 | . 27 26 Device 7 | . 6 10 Storage 14 | . 14 14 Ballistic Gun 27 | . 28 21 Naked Turns . | . . . Heaviest Build 16 | 12 15 16 Greatest Support 26 | 20 26 26 Greatest Overweight (x) . | . . . Average Overweight (x) . | . . . Largest Inventory Capacity 8 | 8 8 8 Average Capacity 7 | 6 8 8 Most Carried 7 | 4 7 7 Average Carried 5 | 1 5 6 Final Capacity 8 | 8 8 8 Final Carried 7 | 4 7 2 Class Distribution -------------------- 100% | Mutant Dominant Class ---------------- Mutant | -10/Materials Mutant | -10/Mines Resources | -11 -10 -10 ----------- Run | Jun Mat Min Matter Collected 426 | 187 197 42 Remotely 128 | . 93 35 Salvage Created 274 | . 197 77 Parts 21 | . 19 2 Haulers Intercepted . | . . . Recyclers Shooed . | . . . Parts Field Recycled . | . . . Retrieved Matter . | . . . Parts Self-Destructed . | . . . Prevented . | . . . Kills | -11 -10 -10 ------- Run | Jun Mat Min Combat Hostiles Destroyed 21 | . 8 13 Guns 11 | . 8 3 AOE 10 | . . 10 Classes Destroyed 4 | . 2 2 Worker 1 | . . 1 Swarmer 5 | . 5 . Grunt 3 | . 3 . Assembled 13 | . . 13 Best Kill Streak 14 | . 3 14 Combat Bots Only 13 | . 3 13 Max Kills in Single Turn 4 | . 1 4 Gunslinging . | . . . Exploded 4 | . . 4 Melee . | . . . Uniques/NPCs Destroyed . | . . . Combat | -11 -10 -10 -------- Run | Jun Mat Min Damage Taken 1251 | . 263 988 Core 263 | . 87 176 Absorbed by Shields . | . . . Regen/Repaired (Parts) 82 | . 82 . Core Remaining (%) 100 | 100 . . Volleys Fired 33 | . 21 12 Largest 2 | . 2 2 Hottest 40 | . 40 40 Shots Fired 60 | . 42 18 Gun 55 | . 42 13 Cannon . | . . . Launcher 5 | . . 5 Special . | . . . Kinetic 55 | . 42 13 Thermal . | . . . Explosive 5 | . . 5 Electromagnetic . | . . . Robot Hit Streak 8 | . 8 8 Robot Miss Streak 7 | . 7 3 Penetration Max . | . . . Secondary Targets 1 | . 1 . Max Gunslinging Chain 1 | . 1 . Shots Hit Robots 35 | . 23 12 Core Hits 43 | . 14 29 Critical Kills . | . . . Critical Parts Destroyed . | . . . Critical Strikes . | . . . Melee Attacks 2 | . . 2 Impact 2 | . . 2 Slashing . | . . . Piercing . | . . . Sneak Attacks . | . . . Combat Hostiles . | . . . Follow-up Attacks . | . . . Damage Inflicted 1054 | . 263 791 Guns 367 | . 263 104 Cannons . | . . . Explosions 660 | . . 660 Melee 27 | . . 27 Ramming . | . . . Kinetic 367 | . 263 104 Thermal . | . . . Explosive 660 | . . 660 Electromagnetic . | . . . Impact 27 | . . 27 Slashing . | . . . Piercing . | . . . Highest Corruption 2 | . . 2 Average Corruption 2 | . . 2 Corruption Purged . | . . . Corruption Blocked . | . . . Overload Shots . | . . . Overflow Damage 13 | . . 13 Projectiles . | . . . Explosions 10 | . . 10 Melee 3 | . . 3 Knockbacks . | . . . Impact . | . . . Kinetic . | . . . Secondary . | . . . Self-Inflicted Damage 101 | . . 101 Shots 4 | . . 4 Rammed . | . . . Targets Rammed . | . . . Kicked . | . . . Crushed . | . . . Highest Temperature 30 | . 6 30 Average Temperature 8 | . 2 13 Received Heat Transfer 82 | . 42 40 Siege Activations . | . . . Robots Corrupted . | . . . Combat Hostiles . | . . . Parts Fried . | . . . Impact Corruptions 1 | . . 1 Robots Melted . | . . . Combat Hostiles . | . . . Parts Melted . | . . . Heat Transferred . | . . . Parts Sabotaged . | . . . Parts Stolen . | . . . Parts Stripped . | . . . Power Chain Reactions . | . . . Missiles Intercepted . | . . . Alert | -11 -10 -10 ------- Run | Jun Mat Min Peak Influence 197 | . 197 66 Initial 31 | . . 31 Average 58 | . 70 32 Maximum Alert Level . | . . . Low Security (%) 100 | 100 100 100 Level 1 . | . . . Level 2 . | . . . Level 3 . | . . . Level 4 . | . . . Level 5 . | . . . High Security . | . . . Max Security . | . . . Squads Dispatched . | . . . Investigation . | . . . Extermination . | . . . Reinforcement . | . . . Assault . | . . . Garrison . | . . . Intercept . | . . . Searches Triggered . | . . . Construction Impeded . | . . . Haulers Reinforced . | . . . Active Scanning Responses . | . . . Cargo Convoy Interrupts . | . . . Stealth | -11 -10 -10 --------- Run | Jun Mat Min Distress Signals 1 | . 1 . Communications Jammed . | . . . Distress Signals . | . . . Times Spotted 36 | . 14 22 Peak Tracking Total 17 | . 4 17 Tactical Retreats 2 | . 1 1 Traps | -11 -10 -10 ------- Run | Jun Mat Min Traps Triggered . | . . . Indirectly . | . . . Trap Hack Attempts . | . . . Triggered . | . . . Disarmed . | . . . Reprogrammed . | . . . Reused . | . . . Traps Extracted . | . . . Installed . | . . . Triggered . | . . . Machines | -11 -10 -10 ---------- Run | Jun Mat Min Machines Disabled 1 | . . 1 Max in Single Turn 1 | . . 1 Machines Repaired . | . . . Machines Sabotaged . | . . . Overloaded Fab Kills . | . . . Hacking | -11 -10 -10 --------- Run | Jun Mat Min Machines Accessed 5 | . 5 . Terminals 3 | . 3 . Fabricators . | . . . Repair Stations 1 | . 1 . Recycling Units 1 | . 1 . Scanalyzers . | . . . Garrison Access . | . . . Total Hacks 17 | . 17 . Successful 10 | . 10 . Failed 7 | . 7 . Catastrophic . | . . . Database Lockouts . | . . . Manual 1 | . 1 . Terminals 11 | . 11 . Fabricators . | . . . Repair Stations 4 | . 4 . Recycling Units 2 | . 2 . Scanalyzers . | . . . Garrison Access . | . . . Terminal Hacks 4 | . 4 . Prototype ID Bank 1 | . 1 . Branch Access Points 1 | . 1 . Locate Traps 1 | . 1 . Hauler Manifests 1 | . 1 . Fabricator Hacks . | . . . Repair Station Hacks 4 | . 4 . Scan Component 2 | . 2 . Repair 2 | . 2 . Recycling Unit Hacks 2 | . 2 . Report Inventory 1 | . 1 . Retrieve Components 1 | . 1 . Scanalyzer . | . . . Garrison Access Hacks . | . . . Unauthorized Hacks . | . . . Terminals . | . . . Fabricators . | . . . Repair Stations . | . . . Recycling Units . | . . . Scanalyzers . | . . . Garrison Access . | . . . Data Cores Recovered . | . . . Used . | . . . Hacking Detections 2 | . 2 . Full Trace Events . | . . . Feedback Events . | . . . Feedback Blocked . | . . . Robot Schematics Acquired . | . . . Robots Built . | . . . Authchips . | . . . Time . | . . . Total Robot Build Rating . | . . . Part Schematics Acquired . | . . . Parts Built . | . . . Authchips . | . . . Time . | . . . Total Part Build Rating . | . . . Parts Repaired 2 | . 2 . Time 58 | . 58 . Parts Recycled . | . . . Recycled Matter . | . . . Retrieved Matter . | . . . Retrieved Components 9 | . 9 . Parts Scanalyzed . | . . . Part Schematics Acquired . | . . . Parts Damaged . | . . . Bothacking | -11 -10 -10 ------------ Run | Jun Mat Min Used RIF Installer . | . . . Robots Hacked . | . . . Non-combat . | . . . Combat . | . . . Robot Hacks Applied . | . . . Relay Couplers Released . | . . . Fabnet Peak Effective % . | . . . Robots Rewired . | . . . Allies Hacked . | . . . Hacks Repelled . | . . . Allies | -11 -10 -10 -------- Run | Jun Mat Min Total Allies . | . . . Largest Group . | . . . Highest-Rated Group . | . . . Highest-Rated Ally . | . . . Total Orders . | . . . Ally Attacks . | . . . Total Damage . | . . . Kills . | . . . Allies Corrupted . | . . . Allies Melted . | . . . Intel | -11 -10 -10 ------- Run | Jun Mat Min Robot Analysis Total . | . . . Derelict Logs Recovered . | . . . Drone Launches . | . . . Drone Recoveries . | . . . Exploration | -11 -10 -10 ------------- Run | Jun Mat Min Turns Passed 844 | 88 646 110 Spaces Moved 510 | 68 386 56 Core 9 | 9 . . Treads . | . . . Legs 501 | 59 386 56 Wheels . | . . . Hover . | . . . Flight . | . . . Fastest Speed 50 | 50 120 120 Average Speed 118 | 110 120 120 Slowest Speed 120 | 120 120 120 Overloaded Moves . | . . . Propulsion Burnouts . | . . . Robots Hopped . | . . . Cave-ins Triggered . | . . . Exploration Rate (%) 23 | 4 49 18 Regions Visited 2 Branch Regions 1 Pre-discovered Areas . | . . . Known Exits Taken 1 | . 1 . Unknown Exits Taken 1 | 1 . . Scrap Searched . | . . . Spaces Dug . | . . . Terrain Destroyed 30 | . . 30 Melee . | . . . Projectile . | . . . AOE 30 | . . 30 Terrain Rammed . | . . . Walls Destroyed . | . . . Machines Disabled . | . . . Actions | -11 -10 -10 --------- Run | Jun Mat Min Total 688 | 77 534 77 Wait 103 | . 102 1 Move 508 | 67 385 56 Hop . | . . . Pick Up 12 | 4 8 . Fast Attach 9 | 6 3 . Attach 6 | . 1 5 Detach 1 | . 1 . Swap 5 | . 4 1 Drop 9 | . 9 . Fire 33 | . 21 12 Melee 2 | . . 2 Ram . | . . . Kick . | . . . Crush . | . . . Escape Stasis . | . . . Rewire . | . . . Trap . | . . . Miscellaneous . | . . . Route ------- -11/Junkyard -10/Materials (discovered 3 exits: [*Mat] / *Min x2) -10/Mines History --------- Turn | Location | Event 12 | -11/Junkyard | Discovered new exit (range 15) 89 | -11/Junkyard | Entered Materials 227 | -10/Materials | Discovered new exit (range 10) 308 | -10/Materials | Build established: Mutant 362 | -10/Materials | Repaired Imp. Aluminum Leg 389 | -10/Materials | Repaired Ion Engine 408 | -10/Materials | Discovered new exit (range 15) 431 | -10/Materials | Discovered new exit (range 8) 484 | -10/Materials | Identified exit to Mines 735 | -10/Materials | Entered Mines 790 | -10/Mines | Assembled infested the area 803 | -10/Mines | Core integrity fell below 50% 841 | -10/Mines | Core integrity fell below 20% 842 | -10/Mines | Destroyed 13 combat bots 845 | -10/Mines | Destroyed by D-53 Grenadier with Mini Grenade Launcher Last Messages --------------- 00827_ U-05 Engineer destroyed. 00828_ U-05 Engineer builds a Wall. 00829_ as-61768 destroyed. 00829_ Imp. Aluminum Leg destroyed. 00830_ The unstable cave ceiling collapses. 00831_ Assault Rifle destroyed. 00831_ Imp. Aluminum Leg destroyed. 00831_ R-06 Scavenger destroyed. 00832_ U-05 Engineer lays Concrete. 00835_ The unstable cave ceiling collapses. 00835_ U-05 Engineer lays Concrete. 00836_ U-05 Engineer builds a Wall. 00838_ The unstable cave ceiling collapses. 00841_ U-05 Engineer builds a Wall. 00842_ The unstable cave ceiling collapses. 00842_ Imp. Aluminum Leg destroyed. 00843_ Destroyed Shock Absorption System. 00843_ D-53 Grenadier system corrupted by crushing effect. 00845_ D-53 Grenadier IFF system glitched. 00845_ Aluminum Leg destroyed. Map ----- +----------------------------------------------------+ | ????????##### ## ##?##???????????? | | ????????# #??????????????? | | ????????# ### #??????????????? | | ????????# ## ##?# #??????????????? | | ?????? ?# #??# ###????????????? | | ?????## ?? #??# #????????????? | | ??????# ??####??### #????????????? | | ?????# ???????????# ######???????? | | ???? ????????????# #???????? | | ??? ?????????????###### #???????? | | ?? ?????????????????## #???????? | | ?? ?????????????????## ##??????? | | ??????????????????????# #??????? | | ??????????????????????# ##?????? | | ??????????????????????# #?????? | | ??????????????????????## #?????? | | ???????????????????????## ##????? | | ????????????????????????##t #????? | | ?????????????????????????# #????? | | ????????????????????????## #????? | | ??????????????????????### #????? | | ?????????????????????## #????? | | ????????????????????## ##???? | | ????????????????????# #???? | | ???????????????????## " ##???? | | ??????????????????## @ #???? | | ?????????????????## d #???? | | ???????????#########% d #???? | | ???????????# " !% = ##???? | | ???????????# "% u!! #???? | | ???????????# ###### # #???? | | ?????????????????# ##???? | | ?????????????????## # # ##????? | | ??????????????????## # ##?????? | | ???????????????????# #% ##??????? | | ???????????????????$ ##???????? | | ??????????????????### ##????????? | | ????????????????????# % #????????? | | ????????????????????# ????????? | | ????????????????????# %????????? | | ????????????????????# ???????? | | ???????????????????? ???????? | | ????????????????????## ????????? | | ??????????????????????# ????????? | | ??????????????????????? ????????? | | ??????????????????????? ????????? | | ??????????????????????? ?????????? | | ??????????????????????????????????? | | ??????????????????????????????????? | | ??????????????????????????????????? | +----------------------------------------------------+ Best States ------------- Heat Dissipation 25 Energy Generation 10 Energy Capacity 250 Matter Stores 274 Matter Capacity 300 Sight Range 16 Terrain Scan Density 10 Evasion (%) 55 Item Schematics ----------------- None Robot Schematics ------------------ None Fabricated ------------ Nothing Alien Tech Used ----------------- None Achievements -------------- None Challenges ------------ None Game ------ Seed FireHardcellRegenerator Manual? 0 Play Time 00:27:17 Cumulative 127.5 hours Start 2023.10.01 @ 10:38:17 End 2023.10.14 @ 00:07:57 Sessions 4 Manual Loads 0 Difficulty Rogue Special Mode None Game No. 45 Rogue 45 Adventurer 0 Explorer 0 Win Type - Total 0 Types 0/0/0/0/0/0/0/0/0 Lore% 36 Gallery% 54 Achievement% 43 Wizard Run 0 Options --------- ASCII 0 Keyboard 1 Movement Numpad Keybinds 0 Fullscreen 1 Font 18/SmallcapsGlow Map View 76x50 Tactical HUD 1 Map Filters NONE Filters NONE Steam 1 RUN: cba11c07-fa41-4dc3-b6f7-f56e7c91073f